[Event "Titled Tuesday Blitz November 14 Early 2023"]
[White "Kleiman, Jake"]
[Black "Bogaudinov, Rushan"]
[WhiteFideId "2020041"]
[BlackFideId "4129288"]
[WhiteElo "2614"]
[BlackElo "2331"]
[Result "1/2-1/2"]
[Round "7"]
[TimeControl "180+1"]
[Date "2023.11.14"]
[WhiteClock "0:00:27"]
[BlackClock "0:00:29"]
[Board "139"]

1. e4 {[%clk 0:02:56]}  e6 {[%clk 0:02:59]} 2. d4 {[%clk 0:02:55]}  a6 {[%clk 0:02:59]} 3. Nf3 {[%clk 0:02:53]}  d5 {[%clk 0:02:57]} 4. Nbd2 {[%clk 0:02:51]}  c5 {[%clk 0:02:56]} 5. exd5 {[%clk 0:02:50]}  Qxd5 {[%clk 0:02:54]} 6. Bc4 {[%clk 0:02:49]}  Qd8 {[%clk 0:02:54]} 7. dxc5 {[%clk 0:02:41]}  Bxc5 {[%clk 0:02:52]} 8. Qe2 {[%clk 0:02:33]}  Nf6 {[%clk 0:02:50]} 9. O-O {[%clk 0:02:29]}  O-O {[%clk 0:02:49]} 10. a4 {[%clk 0:02:25]}  Nc6 {[%clk 0:02:47]} 11. c3 {[%clk 0:02:23]}  e5 {[%clk 0:02:40]} 12. Nxe5 {[%clk 0:02:15]}  Nxe5 {[%clk 0:02:36]} 13. Qxe5 {[%clk 0:02:16]}  Bd6 {[%clk 0:02:32]} 14. Qg5 {[%clk 0:02:15]}  h6 {[%clk 0:02:32]} 15. Qh4 {[%clk 0:02:15]}  Ng4 {[%clk 0:02:25]} 16. Qxd8 {[%clk 0:02:09]}  Rxd8 {[%clk 0:02:18]} 17. Nf3 {[%clk 0:02:02]}  Bf5 {[%clk 0:02:13]} 18. Re1 {[%clk 0:01:55]}  Rac8 {[%clk 0:02:12]} 19. Bb3 {[%clk 0:01:51]}  Bc5 {[%clk 0:02:09]} 20. Be3 {[%clk 0:01:46]}  Nxe3 {[%clk 0:02:07]} 21. fxe3 {[%clk 0:01:47]}  Be4 {[%clk 0:01:52]} 22. Nd4 {[%clk 0:01:45]}  g6 {[%clk 0:01:44]} 23. Rad1 {[%clk 0:01:42]}  Kg7 {[%clk 0:01:44]} 24. Kf2 {[%clk 0:01:40]}  Re8 {[%clk 0:01:42]} 25. h3 {[%clk 0:01:36]}  h5 {[%clk 0:01:41]} 26. Rd2 {[%clk 0:01:26]}  Re7 {[%clk 0:01:41]} 27. Bc2 {[%clk 0:01:20]}  Bc6 {[%clk 0:01:32]} 28. a5 {[%clk 0:01:09]}  Be8 {[%clk 0:01:13]} 29. Bd1 {[%clk 0:01:08]}  Rcc7 {[%clk 0:01:05]} 30. Bf3 {[%clk 0:01:06]}  h4 {[%clk 0:01:00]} 31. Red1 {[%clk 0:01:02]}  Re5 {[%clk 0:01:00]} 32. b4 {[%clk 0:00:55]}  Be7 {[%clk 0:01:00]} 33. Rd3 {[%clk 0:00:54]}  Bg5 {[%clk 0:00:53]} 34. Re1 {[%clk 0:00:44]}  Rce7 {[%clk 0:00:52]} 35. Bd1 {[%clk 0:00:43]}  f5 {[%clk 0:00:47]} 36. Nf3 {[%clk 0:00:42]}  Bf6 {[%clk 0:00:43]} 37. Nxe5 {[%clk 0:00:42]}  Bxe5 {[%clk 0:00:44]} 38. Bf3 {[%clk 0:00:39]}  Bg3+ {[%clk 0:00:43]} 39. Kf1 {[%clk 0:00:38]}  Bb5 {[%clk 0:00:41]} 40. Rd1 {[%clk 0:00:37]}  Rxe3 {[%clk 0:00:39]} 41. Be2 {[%clk 0:00:36]}  Bxd3 {[%clk 0:00:34]} 42. Rxd3 {[%clk 0:00:34]}  Rxd3 {[%clk 0:00:31]} 43. Bxd3 {[%clk 0:00:35]}  Be5 {[%clk 0:00:30]} 44. c4 {[%clk 0:00:35]}  Bc3 {[%clk 0:00:30]} 45. b5 {[%clk 0:00:35]}  axb5 {[%clk 0:00:28]} 46. cxb5 {[%clk 0:00:35]}  Bxa5 {[%clk 0:00:29]} 47. Ke2 {[%clk 0:00:35]}  b6 {[%clk 0:00:28]} 48. Bc4 {[%clk 0:00:35]}  Kf6 {[%clk 0:00:28]} 49. Bd5 {[%clk 0:00:35]}  g5 {[%clk 0:00:28]} 50. Bc6 {[%clk 0:00:36]}  Bb4 {[%clk 0:00:28]} 51. Bd7 {[%clk 0:00:36]}  Bc5 {[%clk 0:00:28]} 52. Bc8 {[%clk 0:00:36]}  Bd6 {[%clk 0:00:28]} 53. Kf3 {[%clk 0:00:36]}  Be5 {[%clk 0:00:28]} 54. Ke3 {[%clk 0:00:36]}  Bd6 {[%clk 0:00:28]} 55. Kd3 {[%clk 0:00:36]}  Bc5 {[%clk 0:00:28]} 56. Kc4 {[%clk 0:00:36]}  Ke5 {[%clk 0:00:28]} 57. Bd7 {[%clk 0:00:36]}  Kf4 {[%clk 0:00:28]} 58. Kd5 {[%clk 0:00:34]}  g4 {[%clk 0:00:28]} 59. Kc4 {[%clk 0:00:25]}  gxh3 {[%clk 0:00:27]} 60. gxh3 {[%clk 0:00:25]}  Ke4 {[%clk 0:00:27]} 61. Kc3 {[%clk 0:00:24]}  Ke3 {[%clk 0:00:27]} 62. Bxf5 {[%clk 0:00:23]}  Kf4 {[%clk 0:00:26]} 63. Bg4 {[%clk 0:00:22]}  Kg3 {[%clk 0:00:27]} 64. Kc4 {[%clk 0:00:23]}  Kf2 {[%clk 0:00:27]} 65. Kd5 {[%clk 0:00:24]}  Kg3 {[%clk 0:00:28]} 66. Kc6 {[%clk 0:00:25]}  Kf2 {[%clk 0:00:28]} 67. Kd5 {[%clk 0:00:25]}  Kg3 {[%clk 0:00:29]} 68. Kc6 {[%clk 0:00:26]}  Kf2 {[%clk 0:00:29]} 69. Kd5 {[%clk 0:00:27]} 1/2-1/2


[Site "https://www.chess.com"]

[Event "Titled Tuesday Blitz November 14 Early 2023"]
[White "Jaskolka, Tomasz"]
[Black "Mazzilli, Piero"]
[WhiteFideId "1170791"]
[BlackFideId "807087"]
[WhiteElo "2554"]
[BlackElo "2327"]
[Result "1-0"]
[Round "7"]
[TimeControl "180+1"]
[Date "2023.11.14"]
[WhiteClock "0:01:11"]
[BlackClock "0:00:00"]
[Board "140"]

1. e4 {[%clk 0:03:00]}  c5 {[%clk 0:02:56]} 2. Nf3 {[%clk 0:03:01]}  d6 {[%clk 0:02:50]} 3. b4 {[%clk 0:03:00]}  cxb4 {[%clk 0:02:48]} 4. d4 {[%clk 0:03:00]}  Nf6 {[%clk 0:02:44]} 5. Bd3 {[%clk 0:03:00]}  Nc6 {[%clk 0:02:40]} 6. a3 {[%clk 0:02:57]}  Bg4 {[%clk 0:02:11]} 7. d5 {[%clk 0:02:48]}  Bxf3 {[%clk 0:01:27]} 8. gxf3 {[%clk 0:02:47]}  Ne5 {[%clk 0:01:20]} 9. Bb5+ {[%clk 0:02:46]}  Nfd7 {[%clk 0:01:19]} 10. axb4 {[%clk 0:02:47]}  Qb6 {[%clk 0:01:15]} 11. Na3 {[%clk 0:02:30]}  a6 {[%clk 0:01:05]} 12. Be3 {[%clk 0:02:30]}  Qc7 {[%clk 0:01:02]} 13. Bxd7+ {[%clk 0:02:20]}  Nxd7 {[%clk 0:01:00]} 14. c4 {[%clk 0:02:18]}  e6 {[%clk 0:00:22]} 15. O-O {[%clk 0:02:15]}  Be7 {[%clk 0:00:20]} 16. Nb5 {[%clk 0:01:56]}  Qb8 {[%clk 0:00:19]} 17. dxe6 {[%clk 0:01:50]}  fxe6 {[%clk 0:00:17]} 18. Nd4 {[%clk 0:01:50]}  Nf8 {[%clk 0:00:17]} 19. Qa4+ {[%clk 0:01:47]}  Kf7 {[%clk 0:00:15]} 20. f4 {[%clk 0:01:43]}  Bf6 {[%clk 0:00:12]} 21. Rad1 {[%clk 0:01:42]}  Qc7 {[%clk 0:00:11]} 22. f5 {[%clk 0:01:37]}  e5 {[%clk 0:00:11]} 23. Ne6 {[%clk 0:01:35]}  Nxe6 {[%clk 0:00:11]} 24. fxe6+ {[%clk 0:01:36]}  Kxe6 {[%clk 0:00:11]} 25. c5 {[%clk 0:01:34]}  dxc5 {[%clk 0:00:09]} 26. Bxc5 {[%clk 0:01:29]}  Kf7 {[%clk 0:00:05]} 27. Qb3+ {[%clk 0:01:28]}  Kg6 {[%clk 0:00:03]} 28. Qh3 {[%clk 0:01:16]}  Qc8 {[%clk 0:00:02]} 29. Rd7 {[%clk 0:01:11]}  h5 {[%clk 0:00:01]} 30. Qf5+ {[%clk 0:01:11]}  Kh6 {[%clk 0:00:00]} 31. Be3+ {[%clk 0:01:11]} 1-0


[Site "https://www.chess.com"]

[Event "Titled Tuesday Blitz November 14 Early 2023"]
[White "Lopez Del Alamo, Antonio"]
[Black "Arngrimsson, Dagur"]
[WhiteFideId "2227339"]
[BlackFideId "2301288"]
[WhiteElo "2327"]
[BlackElo "2519"]
[Result "1-0"]
[Round "7"]
[TimeControl "180+1"]
[Date "2023.11.14"]
[WhiteClock "0:00:26"]
[BlackClock "0:00:04"]
[Board "141"]

1. e4 {[%clk 0:03:00]}  e5 {[%clk 0:02:37]} 2. Bc4 {[%clk 0:02:58]}  Nf6 {[%clk 0:02:26]} 3. d3 {[%clk 0:02:57]}  c6 {[%clk 0:02:27]} 4. Nf3 {[%clk 0:02:56]}  d5 {[%clk 0:02:28]} 5. Bb3 {[%clk 0:02:56]}  Bd6 {[%clk 0:02:27]} 6. Nc3 {[%clk 0:02:54]}  O-O {[%clk 0:02:19]} 7. a3 {[%clk 0:02:46]}  h6 {[%clk 0:02:17]} 8. O-O {[%clk 0:02:41]}  dxe4 {[%clk 0:02:12]} 9. Nxe4 {[%clk 0:02:40]}  Bg4 {[%clk 0:02:02]} 10. h3 {[%clk 0:02:26]}  Bh5 {[%clk 0:01:49]} 11. Ng3 {[%clk 0:02:22]}  Nbd7 {[%clk 0:01:34]} 12. Nxh5 {[%clk 0:02:18]}  Nxh5 {[%clk 0:01:35]} 13. Nxe5 {[%clk 0:02:15]}  Nxe5 {[%clk 0:01:32]} 14. Qxh5 {[%clk 0:02:13]}  Kh7 {[%clk 0:01:31]} 15. Bd2 {[%clk 0:02:03]}  f5 {[%clk 0:01:30]} 16. Bc3 {[%clk 0:01:52]}  c5 {[%clk 0:01:26]} 17. Rae1 {[%clk 0:01:51]}  Qc7 {[%clk 0:01:14]} 18. f4 {[%clk 0:01:40]}  Ng6 {[%clk 0:01:03]} 19. g3 {[%clk 0:01:31]}  Rae8 {[%clk 0:00:28]} 20. Rxe8 {[%clk 0:01:28]}  Rxe8 {[%clk 0:00:29]} 21. Qxf5 {[%clk 0:01:27]}  Re3 {[%clk 0:00:28]} 22. Kg2 {[%clk 0:01:17]}  Qc6+ {[%clk 0:00:23]} 23. Bd5 {[%clk 0:01:15]}  Qe8 {[%clk 0:00:22]} 24. Bf7 {[%clk 0:01:13]}  Qc6+ {[%clk 0:00:21]} 25. Bd5 {[%clk 0:01:07]}  Qe8 {[%clk 0:00:20]} 26. Rf2 {[%clk 0:01:03]}  Kh8 {[%clk 0:00:16]} 27. Be4 {[%clk 0:00:56]}  Nf8 {[%clk 0:00:14]} 28. Bd2 {[%clk 0:00:50]}  Rxe4 {[%clk 0:00:12]} 29. Qxe4 {[%clk 0:00:50]}  Qf7 {[%clk 0:00:12]} 30. Bc3 {[%clk 0:00:50]}  Ne6 {[%clk 0:00:12]} 31. h4 {[%clk 0:00:48]}  Kg8 {[%clk 0:00:11]} 32. f5 {[%clk 0:00:48]}  Nc7 {[%clk 0:00:11]} 33. Re2 {[%clk 0:00:48]}  Kh7 {[%clk 0:00:10]} 34. f6+ {[%clk 0:00:48]}  g6 {[%clk 0:00:11]} 35. Qxb7 {[%clk 0:00:45]}  a6 {[%clk 0:00:10]} 36. Qf3 {[%clk 0:00:45]}  Nd5 {[%clk 0:00:09]} 37. h5 {[%clk 0:00:34]}  gxh5 {[%clk 0:00:08]} 38. Qf5+ {[%clk 0:00:33]}  Kg8 {[%clk 0:00:08]} 39. Re8+ {[%clk 0:00:29]}  Qxe8 {[%clk 0:00:07]} 40. Qxd5+ {[%clk 0:00:30]}  Kh7 {[%clk 0:00:06]} 41. Qf5+ {[%clk 0:00:27]}  Qg6 {[%clk 0:00:06]} 42. Qd7+ {[%clk 0:00:25]}  Kg8 {[%clk 0:00:03]} 43. Qxd6 {[%clk 0:00:24]}  Qe8 {[%clk 0:00:03]} 44. Qd5+ {[%clk 0:00:24]}  Kh7 {[%clk 0:00:03]} 45. Qe4+ {[%clk 0:00:24]}  Qxe4+ {[%clk 0:00:03]} 46. dxe4 {[%clk 0:00:25]}  Kg6 {[%clk 0:00:03]} 47. e5 {[%clk 0:00:25]}  Kf7 {[%clk 0:00:04]} 48. Kf3 {[%clk 0:00:26]} 1-0


[Site "https://www.chess.com"]

[Event "Titled Tuesday Blitz November 14 Early 2023"]
[White "Zivic, Dragan"]
[Black "Kanyamarala, Trisha"]
[WhiteFideId "904740"]
[BlackFideId "45004722"]
[WhiteElo "2324"]
[BlackElo "2500"]
[Result "1-0"]
[Round "7"]
[TimeControl "180+1"]
[Date "2023.11.14"]
[WhiteClock "0:00:11"]
[BlackClock "0:00:00"]
[Board "143"]

1. c4 {[%clk 0:03:00]}  e5 {[%clk 0:02:57]} 2. Nc3 {[%clk 0:03:00]}  Nf6 {[%clk 0:02:55]} 3. Nf3 {[%clk 0:03:00]}  d6 {[%clk 0:02:55]} 4. g3 {[%clk 0:02:59]}  Be7 {[%clk 0:02:55]} 5. Bg2 {[%clk 0:02:59]}  O-O {[%clk 0:02:56]} 6. O-O {[%clk 0:03:00]}  Be6 {[%clk 0:02:55]} 7. b3 {[%clk 0:02:59]}  h6 {[%clk 0:02:55]} 8. d4 {[%clk 0:02:59]}  e4 {[%clk 0:02:46]} 9. Nd2 {[%clk 0:02:57]}  Bf5 {[%clk 0:02:43]} 10. Ndxe4 {[%clk 0:02:55]}  c6 {[%clk 0:02:40]} 11. Nxf6+ {[%clk 0:02:54]}  Bxf6 {[%clk 0:02:39]} 12. e4 {[%clk 0:02:54]}  Be6 {[%clk 0:02:35]} 13. Be3 {[%clk 0:02:52]}  Qa5 {[%clk 0:02:32]} 14. Qd2 {[%clk 0:02:48]}  Nd7 {[%clk 0:02:30]} 15. Nd5 {[%clk 0:02:41]}  Qxd2 {[%clk 0:02:28]} 16. Nxf6+ {[%clk 0:02:41]}  Nxf6 {[%clk 0:02:29]} 17. Bxd2 {[%clk 0:02:41]}  Rfe8 {[%clk 0:02:29]} 18. h3 {[%clk 0:02:39]}  Rab8 {[%clk 0:02:28]} 19. Rfe1 {[%clk 0:02:36]}  b5 {[%clk 0:02:27]} 20. cxb5 {[%clk 0:02:27]}  cxb5 {[%clk 0:02:27]} 21. d5 {[%clk 0:02:25]}  Bc8 {[%clk 0:02:25]} 22. Be3 {[%clk 0:02:12]}  Nxe4 {[%clk 0:02:15]} 23. Bxa7 {[%clk 0:02:01]}  Ra8 {[%clk 0:02:14]} 24. Bd4 {[%clk 0:01:57]}  Bf5 {[%clk 0:02:13]} 25. a4 {[%clk 0:01:44]}  bxa4 {[%clk 0:01:56]} 26. bxa4 {[%clk 0:01:44]}  Nd2 {[%clk 0:01:51]} 27. Rxe8+ {[%clk 0:01:43]}  Rxe8 {[%clk 0:01:52]} 28. a5 {[%clk 0:01:43]}  Nb3 {[%clk 0:01:51]} 29. Ra4 {[%clk 0:01:43]}  Bd7 {[%clk 0:01:42]} 30. Rb4 {[%clk 0:01:42]}  Nxa5 {[%clk 0:01:39]} 31. Rb6 {[%clk 0:01:40]}  Nc4 {[%clk 0:01:35]} 32. Rb7 {[%clk 0:01:33]}  Bf5 {[%clk 0:01:31]} 33. Rc7 {[%clk 0:01:27]}  Re1+ {[%clk 0:01:27]} 34. Kh2 {[%clk 0:01:25]}  Ne5 {[%clk 0:01:24]} 35. Bxe5 {[%clk 0:01:20]}  Rxe5 {[%clk 0:01:14]} 36. Rc6 {[%clk 0:01:01]}  Re2 {[%clk 0:01:12]} 37. g4 {[%clk 0:01:01]}  Be4 {[%clk 0:00:48]} 38. Bxe4 {[%clk 0:00:55]}  Rxe4 {[%clk 0:00:48]} 39. Rxd6 {[%clk 0:00:56]}  Kf8 {[%clk 0:00:49]} 40. Kg3 {[%clk 0:00:56]}  Ke7 {[%clk 0:00:48]} 41. Ra6 {[%clk 0:00:51]}  Rd4 {[%clk 0:00:48]} 42. Ra7+ {[%clk 0:00:51]}  Kf6 {[%clk 0:00:48]} 43. Ra5 {[%clk 0:00:49]}  g5 {[%clk 0:00:35]} 44. Ra6+ {[%clk 0:00:48]}  Ke7 {[%clk 0:00:26]} 45. Rxh6 {[%clk 0:00:46]}  Rxd5 {[%clk 0:00:25]} 46. h4 {[%clk 0:00:34]}  gxh4+ {[%clk 0:00:19]} 47. Kxh4 {[%clk 0:00:34]}  Rd2 {[%clk 0:00:18]} 48. f4 {[%clk 0:00:34]}  Rf2 {[%clk 0:00:15]} 49. Kg5 {[%clk 0:00:33]}  Rc2 {[%clk 0:00:14]} 50. f5 {[%clk 0:00:33]}  Kf8 {[%clk 0:00:13]} 51. Rh8+ {[%clk 0:00:33]}  Ke7 {[%clk 0:00:14]} 52. Ra8 {[%clk 0:00:32]}  Rc5 {[%clk 0:00:11]} 53. Kh6 {[%clk 0:00:25]}  Rd5 {[%clk 0:00:08]} 54. Kg7 {[%clk 0:00:23]}  Rd4 {[%clk 0:00:04]} 55. g5 {[%clk 0:00:22]}  Rd5 {[%clk 0:00:03]} 56. g6 {[%clk 0:00:20]}  Rxf5 {[%clk 0:00:02]} 57. Ra7+ {[%clk 0:00:20]}  Ke6 {[%clk 0:00:02]} 58. Rxf7 {[%clk 0:00:15]}  Rg5 {[%clk 0:00:02]} 59. Rf1 {[%clk 0:00:15]}  Rg2 {[%clk 0:00:02]} 60. Kh7 {[%clk 0:00:15]}  Rh2+ {[%clk 0:00:02]} 61. Kg8 {[%clk 0:00:15]}  Rg2 {[%clk 0:00:02]} 62. g7 {[%clk 0:00:15]}  Rg3 {[%clk 0:00:03]} 63. Rf4 {[%clk 0:00:14]}  Ke7 {[%clk 0:00:03]} 64. Kh7 {[%clk 0:00:13]}  Rh3+ {[%clk 0:00:03]} 65. Kg8 {[%clk 0:00:13]}  Ke8 {[%clk 0:00:02]} 66. Re4+ {[%clk 0:00:13]}  Kd7 {[%clk 0:00:02]} 67. Re5 {[%clk 0:00:12]}  Kd6 {[%clk 0:00:02]} 68. Re2 {[%clk 0:00:10]}  Kd7 {[%clk 0:00:02]} 69. Kf7 {[%clk 0:00:10]}  Rf3+ {[%clk 0:00:00]} 70. Kg8 {[%clk 0:00:11]} 1-0


[Site "https://www.chess.com"]

[Event "Titled Tuesday Blitz November 14 Early 2023"]
[White "Sreyas Payyappat"]
[Black "Ardila, Oscar Humberto"]
[WhiteFideId "46674969"]
[BlackFideId "4404742"]
[WhiteElo "2494"]
[BlackElo "2319"]
[Result "1-0"]
[Round "7"]
[TimeControl "180+1"]
[Date "2023.11.14"]
[WhiteClock "0:00:08"]
[BlackClock "0:00:11"]
[Board "144"]

1. e4 {[%clk 0:03:00]}  e5 {[%clk 0:02:59]} 2. Nf3 {[%clk 0:02:58]}  Nf6 {[%clk 0:02:59]} 3. Nxe5 {[%clk 0:02:54]}  d6 {[%clk 0:02:59]} 4. Nf3 {[%clk 0:02:53]}  Nxe4 {[%clk 0:02:59]} 5. Nc3 {[%clk 0:02:53]}  Nxc3 {[%clk 0:02:59]} 6. dxc3 {[%clk 0:02:52]}  Be7 {[%clk 0:02:59]} 7. Bd3 {[%clk 0:02:49]}  O-O {[%clk 0:02:59]} 8. Be3 {[%clk 0:02:46]}  Nd7 {[%clk 0:02:58]} 9. Qd2 {[%clk 0:02:44]}  Nf6 {[%clk 0:02:58]} 10. O-O-O {[%clk 0:02:43]}  c5 {[%clk 0:02:57]} 11. h4 {[%clk 0:02:35]}  b5 {[%clk 0:02:57]} 12. Bxb5 {[%clk 0:02:18]}  Rb8 {[%clk 0:02:14]} 13. Bc4 {[%clk 0:02:12]}  Qb6 {[%clk 0:02:07]} 14. b3 {[%clk 0:02:11]}  Bb7 {[%clk 0:01:58]} 15. Ng5 {[%clk 0:02:08]}  d5 {[%clk 0:01:52]} 16. Bd3 {[%clk 0:02:06]}  Qa5 {[%clk 0:01:52]} 17. Kb1 {[%clk 0:02:03]}  c4 {[%clk 0:01:45]} 18. Bf5 {[%clk 0:01:58]}  Bc8 {[%clk 0:01:37]} 19. g4 {[%clk 0:01:54]}  Bxf5 {[%clk 0:01:20]} 20. gxf5 {[%clk 0:01:55]}  h6 {[%clk 0:01:20]} 21. Bd4 {[%clk 0:01:49]}  hxg5 {[%clk 0:01:02]} 22. hxg5 {[%clk 0:01:46]}  Ne4 {[%clk 0:01:00]} 23. Qe3 {[%clk 0:01:27]}  Bxg5 {[%clk 0:00:41]} 24. Qh3 {[%clk 0:01:24]}  Bh6 {[%clk 0:00:29]} 25. Qxh6 {[%clk 0:01:21]}  f6 {[%clk 0:00:22]} 26. Rdg1 {[%clk 0:01:12]}  Rb7 {[%clk 0:00:20]} 27. Qh7+ {[%clk 0:01:07]}  Kf7 {[%clk 0:00:19]} 28. Rxg7+ {[%clk 0:00:59]}  Ke8 {[%clk 0:00:20]} 29. Qg6+ {[%clk 0:00:54]}  Kd8 {[%clk 0:00:20]} 30. Rxb7 {[%clk 0:00:38]}  Qa3 {[%clk 0:00:19]} 31. Qh6 {[%clk 0:00:18]}  cxb3 {[%clk 0:00:17]} 32. cxb3 {[%clk 0:00:13]}  Kc8 {[%clk 0:00:14]} 33. Rb4 {[%clk 0:00:07]}  a5 {[%clk 0:00:13]} 34. Qxf8+ {[%clk 0:00:05]}  Kc7 {[%clk 0:00:13]} 35. Rc4+ {[%clk 0:00:03]}  dxc4 {[%clk 0:00:13]} 36. Qxa3 {[%clk 0:00:04]}  cxb3 {[%clk 0:00:13]} 37. Qe7+ {[%clk 0:00:03]}  Kc6 {[%clk 0:00:13]} 38. Qe6+ {[%clk 0:00:03]}  Kb5 {[%clk 0:00:13]} 39. Qb6+ {[%clk 0:00:02]}  Kc4 {[%clk 0:00:12]} 40. Qxb3+ {[%clk 0:00:03]}  Kd3 {[%clk 0:00:12]} 41. Rd1+ {[%clk 0:00:04]}  Ke2 {[%clk 0:00:12]} 42. Qc2+ {[%clk 0:00:05]}  Kf3 {[%clk 0:00:13]} 43. Rd3+ {[%clk 0:00:05]}  Kf4 {[%clk 0:00:12]} 44. Re3 {[%clk 0:00:06]}  Kxf5 {[%clk 0:00:12]} 45. Qxe4+ {[%clk 0:00:06]}  Kg5 {[%clk 0:00:12]} 46. Rg3+ {[%clk 0:00:07]}  Kh5 {[%clk 0:00:11]} 47. Qh1# {[%clk 0:00:08]} 1-0


[Site "https://www.chess.com"]

[Event "Titled Tuesday Blitz November 14 Early 2023"]
[White "Maect19"]
[Black "Berezin, Viktor"]
[BlackFideId "14107872"]
[WhiteElo "2314"]
[BlackElo "2457"]
[Result "1-0"]
[Round "7"]
[TimeControl "180+1"]
[Date "2023.11.14"]
[WhiteClock "0:01:17"]
[BlackClock "0:01:46"]
[Board "147"]

1. d4 {[%clk 0:03:00]}  Nf6 {[%clk 0:02:55]} 2. Nf3 {[%clk 0:02:59]}  g6 {[%clk 0:02:55]} 3. c3 {[%clk 0:02:58]}  Bg7 {[%clk 0:02:56]} 4. Bg5 {[%clk 0:02:58]}  O-O {[%clk 0:02:56]} 5. Nbd2 {[%clk 0:02:58]}  d6 {[%clk 0:02:57]} 6. e4 {[%clk 0:02:58]}  c6 {[%clk 0:02:55]} 7. Bc4 {[%clk 0:02:58]}  Nbd7 {[%clk 0:02:54]} 8. Bb3 {[%clk 0:02:57]}  e5 {[%clk 0:02:54]} 9. dxe5 {[%clk 0:02:57]}  dxe5 {[%clk 0:02:51]} 10. O-O {[%clk 0:02:56]}  Qc7 {[%clk 0:02:50]} 11. Qe2 {[%clk 0:02:56]}  Nc5 {[%clk 0:02:49]} 12. h3 {[%clk 0:02:53]}  Be6 {[%clk 0:02:49]} 13. Rad1 {[%clk 0:02:49]}  Bxb3 {[%clk 0:02:47]} 14. axb3 {[%clk 0:02:49]}  Ne6 {[%clk 0:02:47]} 15. Nc4 {[%clk 0:02:46]}  h6 {[%clk 0:02:43]} 16. Be3 {[%clk 0:02:39]}  Nxe4 {[%clk 0:02:40]} 17. Bxh6 {[%clk 0:02:11]}  Nxc3 {[%clk 0:02:33]} 18. bxc3 {[%clk 0:02:10]}  Bxh6 {[%clk 0:02:32]} 19. Qxe5 {[%clk 0:02:10]}  Rad8 {[%clk 0:02:22]} 20. Qxc7 {[%clk 0:02:01]}  Nxc7 {[%clk 0:02:22]} 21. Nd6 {[%clk 0:02:01]}  b5 {[%clk 0:02:21]} 22. Ne5 {[%clk 0:01:53]}  Bf4 {[%clk 0:02:18]} 23. Ndxf7 {[%clk 0:01:49]}  Rxd1 {[%clk 0:02:09]} 24. Rxd1 {[%clk 0:01:49]}  Rxf7 {[%clk 0:02:08]} 25. Nxf7 {[%clk 0:01:48]}  Kxf7 {[%clk 0:02:09]} 26. g3 {[%clk 0:01:46]}  Be5 {[%clk 0:02:09]} 27. f4 {[%clk 0:01:45]}  Ke6 {[%clk 0:01:57]} 28. Re1 {[%clk 0:01:42]}  Nd5 {[%clk 0:01:55]} 29. Rxe5+ {[%clk 0:01:41]}  Kd6 {[%clk 0:01:56]} 30. c4 {[%clk 0:01:38]}  Nb4 {[%clk 0:01:54]} 31. cxb5 {[%clk 0:01:36]}  c5 {[%clk 0:01:53]} 32. Rg5 {[%clk 0:01:33]}  Nc2 {[%clk 0:01:51]} 33. Rxg6+ {[%clk 0:01:32]}  Kd5 {[%clk 0:01:51]} 34. Ra6 {[%clk 0:01:29]}  Nd4 {[%clk 0:01:50]} 35. Rxa7 {[%clk 0:01:29]}  Nxb3 {[%clk 0:01:50]} 36. Rc7 {[%clk 0:01:27]}  c4 {[%clk 0:01:46]} 37. b6 {[%clk 0:01:17]}  Nc5 {[%clk 0:01:46]} 1-0


[Site "https://www.chess.com"]

[Event "Titled Tuesday Blitz November 14 Early 2023"]
[White "Ramla2020"]
[Black "Tuleyeva-Aketayeva, Dana"]
[BlackFideId "13701932"]
[WhiteElo "2449"]
[BlackElo "2309"]
[Result "1-0"]
[Round "7"]
[TimeControl "180+1"]
[Date "2023.11.14"]
[WhiteClock "0:01:19"]
[BlackClock "0:00:00"]
[Board "148"]

1. c4 {[%clk 0:03:00]}  Nf6 {[%clk 0:02:59]} 2. g3 {[%clk 0:02:59]}  d5 {[%clk 0:02:56]} 3. d4 {[%clk 0:02:57]}  e6 {[%clk 0:02:50]} 4. Bg2 {[%clk 0:02:57]}  dxc4 {[%clk 0:02:47]} 5. Qa4+ {[%clk 0:02:55]}  Bd7 {[%clk 0:02:27]} 6. Qxc4 {[%clk 0:02:54]}  Bc6 {[%clk 0:02:27]} 7. Nf3 {[%clk 0:02:54]}  Be7 {[%clk 0:02:17]} 8. O-O {[%clk 0:02:52]}  O-O {[%clk 0:02:17]} 9. Qc2 {[%clk 0:02:51]}  Be4 {[%clk 0:02:15]} 10. Qb3 {[%clk 0:02:51]}  Nc6 {[%clk 0:02:08]} 11. Nc3 {[%clk 0:02:50]}  Nxd4 {[%clk 0:01:42]} 12. Nxd4 {[%clk 0:02:40]}  Qxd4 {[%clk 0:01:24]} 13. Nxe4 {[%clk 0:02:31]}  Nxe4 {[%clk 0:01:23]} 14. Be3 {[%clk 0:02:32]}  Qe5 {[%clk 0:01:16]} 15. Qxb7 {[%clk 0:02:28]}  Nf6 {[%clk 0:00:53]} 16. Qxa8 {[%clk 0:02:25]}  Rxa8 {[%clk 0:00:52]} 17. Bxa8 {[%clk 0:02:23]}  a6 {[%clk 0:00:39]} 18. Bf3 {[%clk 0:02:12]}  h6 {[%clk 0:00:33]} 19. Rab1 {[%clk 0:02:08]}  g5 {[%clk 0:00:21]} 20. Rfd1 {[%clk 0:02:06]}  c5 {[%clk 0:00:20]} 21. b3 {[%clk 0:02:02]}  Kg7 {[%clk 0:00:19]} 22. Rbc1 {[%clk 0:02:00]}  g4 {[%clk 0:00:16]} 23. Bg2 {[%clk 0:01:59]}  a5 {[%clk 0:00:12]} 24. Rc4 {[%clk 0:01:58]}  Qb2 {[%clk 0:00:11]} 25. Ra4 {[%clk 0:01:53]}  Qxe2 {[%clk 0:00:11]} 26. Rc1 {[%clk 0:01:49]}  Nd5 {[%clk 0:00:07]} 27. Bf1 {[%clk 0:01:42]}  Qb2 {[%clk 0:00:05]} 28. Re1 {[%clk 0:01:30]}  Nxe3 {[%clk 0:00:05]} 29. Rxe3 {[%clk 0:01:30]}  Bf6 {[%clk 0:00:04]} 30. Rxg4+ {[%clk 0:01:26]}  Kf8 {[%clk 0:00:04]} 31. Rf3 {[%clk 0:01:23]}  Bd4 {[%clk 0:00:04]} 32. a4 {[%clk 0:01:22]}  Qa2 {[%clk 0:00:04]} 33. Kg2 {[%clk 0:01:20]}  Qb2 {[%clk 0:00:03]} 34. Bc4 {[%clk 0:01:20]}  Ke7 {[%clk 0:00:00]} 35. Rh4 {[%clk 0:01:19]} 1-0


[Site "https://www.chess.com"]